[Event "*** SCC Grand Prix: Titled Tuesday Blitz"]
[Site "Chess.com"]
[Date "2020.06.02"]
[Round "8"]
[White "saikrishnaReturns"]
[Black "AlexanderL"]
[Result "0-1"]
[WhiteElo "2640"]
[BlackElo "2815"]
[TimeControl "180+1"]
[EndTime "11:33:20 PDT"]
[Termination "AlexanderL won by checkmate"]

1. e4 {[%clk 0:03:00.9]} 1... e6 {[%clk 0:03:00]} 2. d3 {[%clk 0:03:00.6]} 2...
b6 {[%clk 0:02:59.3]} 3. Nd2 {[%clk 0:03:01.5]} 3... Bb7 {[%clk 0:02:59.4]} 4.
Ngf3 {[%clk 0:03:01.8]} 4... d5 {[%clk 0:02:58.3]} 5. g3 {[%clk 0:03:01.9]} 5...
dxe4 {[%clk 0:02:57.7]} 6. dxe4 {[%clk 0:03:02.8]} 6... Nf6 {[%clk 0:02:58]} 7.
Bd3 {[%clk 0:02:56.6]} 7... Nbd7 {[%clk 0:02:56.6]} 8. O-O {[%clk 0:02:52.4]}
8... Nc5 {[%clk 0:02:56.8]} 9. Qe2 {[%clk 0:02:52.4]} 9... Nxd3 {[%clk
0:02:55.5]} 10. cxd3 {[%clk 0:02:53.3]} 10... Be7 {[%clk 0:02:53.1]} 11. Nc4
{[%clk 0:02:51.5]} 11... O-O {[%clk 0:02:52.4]} 12. Bg5 {[%clk 0:02:50.4]} 12...
Nd7 {[%clk 0:02:49.7]} 13. Bxe7 {[%clk 0:02:49.5]} 13... Qxe7 {[%clk 0:02:50.6]}
14. Rac1 {[%clk 0:02:48.3]} 14... Rfd8 {[%clk 0:02:50.1]} 15. Rc3 {[%clk
0:02:44.5]} 15... c5 {[%clk 0:02:47.3]} 16. Nce5 {[%clk 0:02:31.6]} 16... Nb8
{[%clk 0:02:39.8]} 17. Rfc1 {[%clk 0:02:25.4]} 17... f6 {[%clk 0:02:39.5]} 18.
Ng4 {[%clk 0:02:24.1]} 18... Nc6 {[%clk 0:02:39.4]} 19. h4 {[%clk 0:02:23.3]}
19... Rd7 {[%clk 0:02:33.2]} 20. h5 {[%clk 0:02:22.6]} 20... Rad8 {[%clk
0:02:32]} 21. h6 {[%clk 0:02:20.3]} 21... f5 {[%clk 0:02:27.8]} 22. exf5 {[%clk
0:02:15.5]} 22... exf5 {[%clk 0:02:28.7]} 23. Qxe7 {[%clk 0:02:14.2]} 23... Rxe7
{[%clk 0:02:22.4]} 24. Ne3 {[%clk 0:02:14.2]} 24... g6 {[%clk 0:02:20.5]} 25.
Rd1 {[%clk 0:02:05.4]} 25... Nd4 {[%clk 0:02:15.2]} 26. Ne1 {[%clk 0:02:03.9]}
26... Ne2+ {[%clk 0:02:14.9]} 27. Kh2 {[%clk 0:02:03.9]} 27... Nxc3 {[%clk
0:02:14.9]} 28. bxc3 {[%clk 0:02:04.8]} 28... Kf7 {[%clk 0:02:06.3]} 29. N1c2
{[%clk 0:02:00.2]} 29... Bf3 {[%clk 0:02:05.8]} 30. Rd2 {[%clk 0:01:59]} 30...
Kf6 {[%clk 0:02:04]} 31. Na3 {[%clk 0:01:56.3]} 31... g5 {[%clk 0:02:01.1]} 32.
Nac4 {[%clk 0:01:53.2]} 32... f4 {[%clk 0:02:01]} 33. Nc2 {[%clk 0:01:48.4]}
33... Kf5 {[%clk 0:01:58.4]} 34. d4 {[%clk 0:01:46.9]} 34... Re6 {[%clk
0:01:57.3]} 35. dxc5 {[%clk 0:01:29]} 35... Rxh6+ {[%clk 0:01:56.5]} 36. Kg1
{[%clk 0:01:28.3]} 36... Rh1# {[%clk 0:01:57.4]} 0-1

[Event "*** SCC Grand Prix: Titled Tuesday Blitz"]
[Site "Chess.com"]
[Date "2020.06.02"]
[Round "8"]
[White "Haykoooo0o"]
[Black "JulAnt"]
[Result "1-0"]
[WhiteElo "2567"]
[BlackElo "2416"]
[TimeControl "180+1"]
[EndTime "11:33:22 PDT"]
[Termination "Haykoooo0o won by checkmate"]

1. e4 {[%clk 0:02:59.9]} 1... c5 {[%clk 0:03:00.2]} 2. Nc3 {[%clk 0:02:52.8]}
2... e6 {[%clk 0:03:00.4]} 3. f4 {[%clk 0:02:50.8]} 3... d5 {[%clk 0:02:59.4]}
4. Bb5+ {[%clk 0:02:46.4]} 4... Bd7 {[%clk 0:02:37.7]} 5. Bxd7+ {[%clk
0:02:45.5]} 5... Qxd7 {[%clk 0:02:35.2]} 6. d3 {[%clk 0:02:44.9]} 6... Be7
{[%clk 0:02:27.3]} 7. Nf3 {[%clk 0:02:40.8]} 7... Nc6 {[%clk 0:02:25]} 8. O-O
{[%clk 0:02:38.3]} 8... d4 {[%clk 0:02:23.1]} 9. Ne2 {[%clk 0:02:36.7]} 9... Nf6
{[%clk 0:02:23.3]} 10. Ng3 {[%clk 0:02:35.1]} 10... O-O {[%clk 0:02:23.3]} 11.
f5 {[%clk 0:02:30.6]} 11... exf5 {[%clk 0:01:58.5]} 12. Nxf5 {[%clk 0:02:29.4]}
12... Rae8 {[%clk 0:01:44.8]} 13. Bg5 {[%clk 0:02:28.2]} 13... Bd8 {[%clk
0:01:42.8]} 14. Qe1 {[%clk 0:02:14.6]} 14... Qe6 {[%clk 0:01:14.5]} 15. Qg3
{[%clk 0:02:06.7]} 15... Ne7 {[%clk 0:00:56.1]} 16. Nxg7 {[%clk 0:02:01.9]}
16... Kxg7 {[%clk 0:00:45.2]} 17. Bxf6+ {[%clk 0:02:01.5]} 17... Kxf6 {[%clk
0:00:45]} 18. Qg5# {[%clk 0:02:02.1]} 1-0

[Event "*** SCC Grand Prix: Titled Tuesday Blitz"]
[Site "Chess.com"]
[Date "2020.06.02"]
[Round "8"]
[White "The_Machine04"]
[Black "Roza_Idrisova"]
[Result "1-0"]
[WhiteElo "2289"]
[BlackElo "2169"]
[TimeControl "180+1"]
[EndTime "11:33:44 PDT"]
[Termination "The_Machine04 won by resignation"]

1. d4 {[%clk 0:03:00.9]} 1... d5 {[%clk 0:02:59.3]} 2. Bf4 {[%clk 0:02:59.8]}
2... c6 {[%clk 0:02:58.5]} 3. e3 {[%clk 0:02:59.5]} 3... Bf5 {[%clk 0:02:57.9]}
4. c4 {[%clk 0:02:57.6]} 4... e6 {[%clk 0:02:56.7]} 5. Qb3 {[%clk 0:02:56]} 5...
Qb6 {[%clk 0:02:56.2]} 6. c5 {[%clk 0:02:55.9]} 6... Qxb3 {[%clk 0:02:55.9]} 7.
axb3 {[%clk 0:02:56.8]} 7... Nd7 {[%clk 0:02:54.8]} 8. Nc3 {[%clk 0:02:56.8]}
8... a6 {[%clk 0:02:54.6]} 9. h3 {[%clk 0:02:54.3]} 9... h6 {[%clk 0:02:53.9]}
10. Nf3 {[%clk 0:02:54.1]} 10... Ngf6 {[%clk 0:02:53.4]} 11. Ne5 {[%clk
0:02:52.1]} 11... Be7 {[%clk 0:02:52.3]} 12. Be2 {[%clk 0:02:51]} 12... Nxe5
{[%clk 0:02:51.3]} 13. Bxe5 {[%clk 0:02:50.6]} 13... O-O {[%clk 0:02:50.6]} 14.
b4 {[%clk 0:02:50.2]} 14... Nd7 {[%clk 0:02:50.1]} 15. Bh2 {[%clk 0:02:48.6]}
15... Bf6 {[%clk 0:02:49.7]} 16. g4 {[%clk 0:02:45]} 16... Bg6 {[%clk
0:02:48.6]} 17. f4 {[%clk 0:02:41.3]} 17... Bh4+ {[%clk 0:02:41.6]} 18. Kd2
{[%clk 0:02:40.4]} 18... f6 {[%clk 0:02:41.1]} 19. Bd3 {[%clk 0:02:37.6]} 19...
Bxd3 {[%clk 0:02:36.6]} 20. Kxd3 {[%clk 0:02:38.5]} 20... Rfe8 {[%clk
0:02:35.7]} 21. Rhg1 {[%clk 0:02:36]} 21... Kf7 {[%clk 0:02:35.2]} 22. Bg3
{[%clk 0:02:34.4]} 22... Bxg3 {[%clk 0:02:34.6]} 23. Rxg3 {[%clk 0:02:35.3]}
23... e5 {[%clk 0:02:34.7]} 24. fxe5 {[%clk 0:02:34.9]} 24... fxe5 {[%clk
0:02:34.8]} 25. Rf1+ {[%clk 0:02:34.6]} 25... Kg8 {[%clk 0:02:30.6]} 26. Kd2
{[%clk 0:02:27.2]} 26... Rf8 {[%clk 0:02:29.6]} 27. Rgf3 {[%clk 0:02:26.1]}
27... Rae8 {[%clk 0:02:21.3]} 28. Ne2 {[%clk 0:02:16.7]} 28... Rxf3 {[%clk
0:02:16.8]} 29. Rxf3 {[%clk 0:02:16.3]} 29... Nf6 {[%clk 0:02:16.6]} 30. Ng3
{[%clk 0:02:12.6]} 30... exd4 {[%clk 0:02:15.2]} 31. exd4 {[%clk 0:02:12.2]}
31... Ne4+ {[%clk 0:02:15]} 32. Nxe4 {[%clk 0:02:04.4]} 32... Rxe4 {[%clk
0:02:13.6]} 33. Kd3 {[%clk 0:02:04.9]} 33... Re1 {[%clk 0:02:11.3]} 34. Re3
{[%clk 0:02:02]} 34... Rb1 {[%clk 0:02:02.6]} 35. Re7 {[%clk 0:01:58]} 35...
Rxb2 {[%clk 0:02:01.5]} 36. Rxb7 {[%clk 0:01:57.7]} 36... a5 {[%clk 0:01:53.7]}
37. b5 {[%clk 0:01:50.3]} 37... cxb5 {[%clk 0:01:44.6]} 38. c6 {[%clk
0:01:50.3]} 38... b4 {[%clk 0:01:39.4]} 39. c7 {[%clk 0:01:48.7]} 39... Rb3+
{[%clk 0:01:38.9]} 40. Kd2 {[%clk 0:01:48.8]} 40... Rc3 {[%clk 0:01:38.3]} 41.
Rb8+ {[%clk 0:01:49]} 1-0

[Event "*** SCC Grand Prix: Titled Tuesday Blitz"]
[Site "Chess.com"]
[Date "2020.06.02"]
[Round "8"]
[White "Djager97"]
[Black "andy_rekt"]
[Result "1-0"]
[WhiteElo "2377"]
[BlackElo "2054"]
[TimeControl "180+1"]
[EndTime "11:33:47 PDT"]
[Termination "Djager97 won by resignation"]

1. e4 {[%clk 0:02:49.2]} 1... c5 {[%clk 0:02:59.5]} 2. Nf3 {[%clk 0:02:49.2]}
2... Nc6 {[%clk 0:02:58.9]} 3. d4 {[%clk 0:02:49.7]} 3... cxd4 {[%clk
0:02:58.7]} 4. Nxd4 {[%clk 0:02:50.6]} 4... Nf6 {[%clk 0:02:59.1]} 5. Nc3 {[%clk
0:02:51.1]} 5... d6 {[%clk 0:02:58.3]} 6. Bg5 {[%clk 0:02:50.2]} 6... e6 {[%clk
0:02:58]} 7. Qd2 {[%clk 0:02:50.4]} 7... a6 {[%clk 0:02:56.4]} 8. O-O-O {[%clk
0:02:50.2]} 8... Bd7 {[%clk 0:02:53.4]} 9. f4 {[%clk 0:02:49.4]} 9... b5 {[%clk
0:02:53.5]} 10. Nxc6 {[%clk 0:02:31.7]} 10... Bxc6 {[%clk 0:02:50.5]} 11. Bd3
{[%clk 0:02:27.7]} 11... Qb6 {[%clk 0:02:43.9]} 12. Bxf6 {[%clk 0:02:23.4]}
12... gxf6 {[%clk 0:02:37]} 13. Rhe1 {[%clk 0:02:22.7]} 13... Be7 {[%clk
0:02:22.5]} 14. f5 {[%clk 0:01:49.8]} 14... b4 {[%clk 0:02:12.1]} 15. Ne2 {[%clk
0:01:34.3]} 15... e5 {[%clk 0:02:11.4]} 16. Kb1 {[%clk 0:01:15]} 16... d5 {[%clk
0:02:11.1]} 17. exd5 {[%clk 0:01:10.1]} 17... Bxd5 {[%clk 0:02:12]} 18. Ng3
{[%clk 0:01:10.7]} 18... O-O-O {[%clk 0:02:03.1]} 19. Qe2 {[%clk 0:01:09.3]}
19... Kb7 {[%clk 0:02:01.1]} 20. Be4 {[%clk 0:01:08.4]} 20... Bxe4 {[%clk
0:01:54.4]} 21. Nxe4 {[%clk 0:01:07.6]} 21... Rd4 {[%clk 0:01:54.4]} 22. Rxd4
{[%clk 0:01:04.8]} 22... Qxd4 {[%clk 0:01:55.3]} 23. Rd1 {[%clk 0:01:04.6]} 1-0

[Event "*** SCC Grand Prix: Titled Tuesday Blitz"]
[Site "Chess.com"]
[Date "2020.06.02"]
[Round "8"]
[White "KejJaj"]
[Black "Giraffe_Chess"]
[Result "0-1"]
[WhiteElo "2078"]
[BlackElo "2384"]
[TimeControl "180+1"]
[EndTime "11:33:50 PDT"]
[Termination "Giraffe_Chess won by resignation"]

1. d4 {[%clk 0:03:00.9]} 1... f5 {[%clk 0:02:59.7]} 2. e4 {[%clk 0:02:59.2]}
2... fxe4 {[%clk 0:02:59.6]} 3. Nc3 {[%clk 0:02:59.6]} 3... Nf6 {[%clk
0:02:59.8]} 4. Bg5 {[%clk 0:03:00]} 4... Nc6 {[%clk 0:03:00.1]} 5. d5 {[%clk
0:02:59.8]} 5... Ne5 {[%clk 0:03:00.2]} 6. Qe2 {[%clk 0:03:00.2]} 6... Nf7
{[%clk 0:02:53.1]} 7. Nh3 {[%clk 0:02:59.8]} 7... d6 {[%clk 0:02:43]} 8. Bh4
{[%clk 0:02:54]} 8... Bg4 {[%clk 0:02:38.7]} 9. f3 {[%clk 0:02:51.9]} 9... Bxh3
{[%clk 0:02:28.6]} 10. gxh3 {[%clk 0:02:49.7]} 10... exf3 {[%clk 0:02:28.9]} 11.
Qxf3 {[%clk 0:02:49.5]} 11... Ne5 {[%clk 0:02:26.8]} 12. Qe3 {[%clk 0:02:41.4]}
12... g6 {[%clk 0:02:22.9]} 13. O-O-O {[%clk 0:02:37.1]} 13... Bg7 {[%clk
0:02:20.2]} 14. Rg1 {[%clk 0:02:24.5]} 14... O-O {[%clk 0:02:19.5]} 15. Bg5
{[%clk 0:02:16.5]} 15... c6 {[%clk 0:02:10.7]} 16. Bh6 {[%clk 0:02:11.7]} 16...
Qb6 {[%clk 0:01:58.6]} 17. Rd4 {[%clk 0:01:44.6]} 17... Bxh6 {[%clk 0:01:49.2]}
18. Qxh6 {[%clk 0:01:31.3]} 18... Qxd4 {[%clk 0:01:46.6]} 19. Rg2 {[%clk
0:01:16.5]} 19... Nxd5 {[%clk 0:01:44.3]} 20. Be2 {[%clk 0:00:55.7]} 20... Nxc3
{[%clk 0:01:36.4]} 21. bxc3 {[%clk 0:00:53.1]} 21... Qf4+ {[%clk 0:01:35.1]} 0-1

[Event "*** SCC Grand Prix: Titled Tuesday Blitz"]
[Site "Chess.com"]
[Date "2020.06.02"]
[Round "8"]
[White "PotapovaM"]
[Black "Stewie_89"]
[Result "0-1"]
[WhiteElo "2450"]
[BlackElo "2620"]
[TimeControl "180+1"]
[EndTime "11:33:57 PDT"]
[Termination "Stewie_89 won by resignation"]

1. d4 {[%clk 0:03:00.9]} 1... d5 {[%clk 0:02:59.6]} 2. c4 {[%clk 0:03:01.3]}
2... dxc4 {[%clk 0:02:59.4]} 3. e4 {[%clk 0:03:01]} 3... Nf6 {[%clk 0:02:54]} 4.
e5 {[%clk 0:02:59.7]} 4... Nd5 {[%clk 0:02:54]} 5. Bxc4 {[%clk 0:03:00.4]} 5...
Nb6 {[%clk 0:02:52.7]} 6. Bb3 {[%clk 0:03:00.9]} 6... Nc6 {[%clk 0:02:50.7]} 7.
Nf3 {[%clk 0:03:01.4]} 7... Bg4 {[%clk 0:02:48.4]} 8. Bxf7+ {[%clk 0:03:01.9]}
8... Kxf7 {[%clk 0:02:44.3]} 9. Ng5+ {[%clk 0:03:02.5]} 9... Ke8 {[%clk
0:02:43.1]} 10. Qxg4 {[%clk 0:03:02.8]} 10... Qxd4 {[%clk 0:02:42.4]} 11. Ne4
{[%clk 0:03:03.1]} 11... Qxe5 {[%clk 0:02:31.1]} 12. O-O {[%clk 0:03:02.1]}
12... e6 {[%clk 0:02:23.5]} 13. Nbc3 {[%clk 0:02:58]} 13... Qf5 {[%clk
0:02:21.7]} 14. Qg3 {[%clk 0:02:54.6]} 14... Rc8 {[%clk 0:02:14.7]} 15. Bg5
{[%clk 0:02:44.9]} 15... h6 {[%clk 0:02:11.2]} 16. Be3 {[%clk 0:02:15.4]} 16...
Kf7 {[%clk 0:02:08.6]} 17. Rad1 {[%clk 0:02:13.1]} 17... Be7 {[%clk 0:02:04.2]}
18. b3 {[%clk 0:01:51]} 18... Nd5 {[%clk 0:01:50.8]} 19. Rd3 {[%clk 0:01:07.3]}
19... Nxc3 {[%clk 0:01:46.1]} 20. Bxh6 {[%clk 0:00:41.5]} 20... Ne2+ {[%clk
0:01:44]} 0-1

[Event "*** SCC Grand Prix: Titled Tuesday Blitz"]
[Site "Chess.com"]
[Date "2020.06.02"]
[Round "8"]
[White "WonderChampion"]
[Black "HanSchut"]
[Result "1-0"]
[WhiteElo "1984"]
[BlackElo "2190"]
[TimeControl "180+1"]
[EndTime "11:34:01 PDT"]
[Termination "WonderChampion won by resignation"]

1. e4 {[%clk 0:03:00.9]} 1... c5 {[%clk 0:02:59]} 2. Nf3 {[%clk 0:02:59.8]} 2...
d6 {[%clk 0:02:59.3]} 3. Bb5+ {[%clk 0:02:58.6]} 3... Nd7 {[%clk 0:02:56.6]} 4.
c4 {[%clk 0:02:56.5]} 4... Nf6 {[%clk 0:02:54.1]} 5. Nc3 {[%clk 0:02:56.4]} 5...
a6 {[%clk 0:02:54.6]} 6. Bxd7+ {[%clk 0:02:55.5]} 6... Qxd7 {[%clk 0:02:54.1]}
7. d4 {[%clk 0:02:56.2]} 7... Qg4 {[%clk 0:02:51.2]} 8. O-O {[%clk 0:02:47.2]}
8... Nxe4 {[%clk 0:02:50.1]} 9. Nd5 {[%clk 0:02:45.8]} 9... Rb8 {[%clk
0:02:28.9]} 10. Nc7+ {[%clk 0:02:42]} 10... Kd8 {[%clk 0:02:27]} 11. Nd5 {[%clk
0:02:42.2]} 11... cxd4 {[%clk 0:02:10]} 12. Qxd4 {[%clk 0:02:35.6]} 12... Nc5
{[%clk 0:02:10.2]} 13. Qc3 {[%clk 0:02:25.4]} 13... Qd7 {[%clk 0:01:53.9]} 14.
Be3 {[%clk 0:01:49.8]} 14... e6 {[%clk 0:01:43.3]} 15. Bxc5 {[%clk 0:01:41.5]}
15... dxc5 {[%clk 0:01:36.8]} 16. Qa5+ {[%clk 0:00:56.6]} 16... b6 {[%clk
0:01:36.1]} 17. Nxb6 {[%clk 0:00:56.8]} 17... Qc7 {[%clk 0:01:36.4]} 18. Rad1+
{[%clk 0:00:55]} 18... Ke7 {[%clk 0:01:25.7]} 19. Nd5+ {[%clk 0:00:53.6]} 1-0

[Event "*** SCC Grand Prix: Titled Tuesday Blitz"]
[Site "Chess.com"]
[Date "2020.06.02"]
[Round "8"]
[White "amiralfio"]
[Black "quesfr"]
[Result "1-0"]
[WhiteElo "2379"]
[BlackElo "2240"]
[TimeControl "180+1"]
[EndTime "11:34:04 PDT"]
[Termination "amiralfio won on time"]

1. d4 {[%clk 0:03:00.9]} 1... d5 {[%clk 0:02:58.9]} 2. Bf4 {[%clk 0:03:01.1]}
2... c5 {[%clk 0:02:56.6]} 3. e3 {[%clk 0:03:01.6]} 3... Nc6 {[%clk 0:02:56.1]}
4. Nc3 {[%clk 0:03:01.6]} 4... Bf5 {[%clk 0:02:51.9]} 5. Nf3 {[%clk 0:03:01.1]}
5... e6 {[%clk 0:02:37]} 6. Ne5 {[%clk 0:03:01]} 6... a6 {[%clk 0:02:24.1]} 7.
Nxc6 {[%clk 0:03:00.1]} 7... bxc6 {[%clk 0:02:24]} 8. Bd3 {[%clk 0:02:59.9]}
8... Bxd3 {[%clk 0:02:17.6]} 9. Qxd3 {[%clk 0:03:00.8]} 9... Bd6 {[%clk
0:02:15.9]} 10. Bxd6 {[%clk 0:03:00.4]} 10... Qxd6 {[%clk 0:02:16]} 11. O-O
{[%clk 0:03:01.3]} 11... Nf6 {[%clk 0:02:11.5]} 12. dxc5 {[%clk 0:02:58.5]}
12... Qxc5 {[%clk 0:02:11.4]} 13. Na4 {[%clk 0:02:59.4]} 13... Qb4 {[%clk
0:02:02.3]} 14. b3 {[%clk 0:02:59.7]} 14... O-O {[%clk 0:01:58.3]} 15. Rfd1
{[%clk 0:02:58.1]} 15... h6 {[%clk 0:01:26.8]} 16. Rac1 {[%clk 0:02:59]} 16...
Rfd8 {[%clk 0:00:44.2]} 17. g3 {[%clk 0:02:58.9]} 17... Ne4 {[%clk 0:00:37.4]}
18. Kg2 {[%clk 0:02:58.6]} 18... a5 {[%clk 0:00:32.6]} 19. c4 {[%clk 0:02:57.6]}
19... Nd6 {[%clk 0:00:14.4]} 20. cxd5 {[%clk 0:02:57.5]} 20... cxd5 {[%clk
0:00:14.6]} 21. Rc7 {[%clk 0:02:58]} 21... Qe4+ {[%clk 0:00:09.3]} 22. Qxe4
{[%clk 0:02:58]} 22... Nxe4 {[%clk 0:00:10.2]} 23. Rdc1 {[%clk 0:02:58.2]} 23...
h5 {[%clk 0:00:09.2]} 24. h4 {[%clk 0:02:57.8]} 24... g6 {[%clk 0:00:09]} 25.
Kf3 {[%clk 0:02:57.5]} 25... Nf6 {[%clk 0:00:08.9]} 26. Ke2 {[%clk 0:02:57.7]}
26... Kg7 {[%clk 0:00:08.5]} 27. Nb6 {[%clk 0:02:57.6]} 27... Rab8 {[%clk
0:00:07.1]} 28. Na4 {[%clk 0:02:58.1]} 28... Ra8 {[%clk 0:00:07]} 29. R1c6
{[%clk 0:02:57.6]} 29... Ne4 {[%clk 0:00:06.9]} 30. Rb6 {[%clk 0:02:55.3]} 30...
Kf6 {[%clk 0:00:05.8]} 31. Rbb7 {[%clk 0:02:55.8]} 31... Rf8 {[%clk 0:00:05.1]}
32. Nb6 {[%clk 0:02:56.5]} 32... Rad8 {[%clk 0:00:04.2]} 33. Nd7+ {[%clk
0:02:57]} 33... Rxd7 {[%clk 0:00:03.8]} 34. Rxd7 {[%clk 0:02:57.9]} 34... g5
{[%clk 0:00:03]} 35. hxg5+ {[%clk 0:02:57.4]} 35... Nxg5 {[%clk 0:00:03.9]} 36.
Rdc7 {[%clk 0:02:57]} 36... Kf5 {[%clk 0:00:03.4]} 37. Ra7 {[%clk 0:02:57.3]}
37... Kg4 {[%clk 0:00:02.7]} 38. Rxa5 {[%clk 0:02:56.6]} 1-0

[Event "*** SCC Grand Prix: Titled Tuesday Blitz"]
[Site "Chess.com"]
[Date "2020.06.02"]
[Round "8"]
[White "Radzio1987"]
[Black "Igrok3069"]
[Result "1-0"]
[WhiteElo "2908"]
[BlackElo "2759"]
[TimeControl "180+1"]
[EndTime "11:34:15 PDT"]
[Termination "Radzio1987 won by resignation"]

1. c4 {[%clk 0:03:00.9]} 1... c6 {[%clk 0:02:59.7]} 2. Nf3 {[%clk 0:03:00.4]}
2... d5 {[%clk 0:03:00.3]} 3. e3 {[%clk 0:03:00.9]} 3... Nf6 {[%clk 0:02:59.7]}
4. Qc2 {[%clk 0:03:01.5]} 4... e6 {[%clk 0:02:54.2]} 5. b3 {[%clk 0:02:58.1]}
5... Bd6 {[%clk 0:02:53.8]} 6. Bb2 {[%clk 0:02:58.2]} 6... O-O {[%clk
0:02:50.5]} 7. d4 {[%clk 0:02:54.4]} 7... b6 {[%clk 0:02:43.5]} 8. Bd3 {[%clk
0:02:52.5]} 8... Bb7 {[%clk 0:02:41.6]} 9. O-O {[%clk 0:02:49.5]} 9... dxc4
{[%clk 0:02:35.8]} 10. Bxc4 {[%clk 0:02:45.8]} 10... c5 {[%clk 0:02:31.1]} 11.
dxc5 {[%clk 0:02:44.9]} 11... Bxc5 {[%clk 0:02:30.6]} 12. Rd1 {[%clk 0:02:44.5]}
12... Nbd7 {[%clk 0:02:28.3]} 13. Ng5 {[%clk 0:02:36.7]} 13... Bd5 {[%clk
0:00:54.8]} 14. Bxd5 {[%clk 0:02:15.5]} 14... exd5 {[%clk 0:00:54.2]} 15. Nc3
{[%clk 0:02:06.1]} 15... h6 {[%clk 0:00:35.9]} 16. Nxd5 {[%clk 0:01:53.2]} 16...
hxg5 {[%clk 0:00:18.8]} 17. Nxf6+ {[%clk 0:01:51]} 17... gxf6 {[%clk 0:00:18.9]}
18. Qf5 {[%clk 0:01:51.1]} 1-0

[Event "*** SCC Grand Prix: Titled Tuesday Blitz"]
[Site "Chess.com"]
[Date "2020.06.02"]
[Round "8"]
[White "mbachez"]
[Black "FightingChess"]
[Result "1-0"]
[WhiteElo "2537"]
[BlackElo "2375"]
[TimeControl "180+1"]
[EndTime "11:34:25 PDT"]
[Termination "mbachez won by resignation"]

1. e4 {[%clk 0:03:00.9]} 1... e6 {[%clk 0:03:00.2]} 2. d4 {[%clk 0:03:00.5]}
2... d5 {[%clk 0:03:00.7]} 3. Bd3 {[%clk 0:03:00.6]} 3... dxe4 {[%clk
0:03:00.7]} 4. Bxe4 {[%clk 0:03:01.5]} 4... Nf6 {[%clk 0:03:00.7]} 5. Bf3 {[%clk
0:03:01.8]} 5... c5 {[%clk 0:03:01.3]} 6. Ne2 {[%clk 0:03:01.9]} 6... Nc6 {[%clk
0:03:01.4]} 7. Be3 {[%clk 0:03:02.1]} 7... cxd4 {[%clk 0:03:01.6]} 8. Nxd4
{[%clk 0:03:02.4]} 8... Ne5 {[%clk 0:03:02.1]} 9. Nc3 {[%clk 0:03:02.6]} 9...
Bb4 {[%clk 0:03:01.5]} 10. Nb5 {[%clk 0:02:57.1]} 10... Nxf3+ {[%clk 0:02:51.2]}
11. Qxf3 {[%clk 0:02:53.6]} 11... Bxc3+ {[%clk 0:02:49.8]} 12. Nxc3 {[%clk
0:02:52.2]} 12... O-O {[%clk 0:02:48]} 13. Rd1 {[%clk 0:02:52.1]} 13... Qe7
{[%clk 0:02:30.8]} 14. O-O {[%clk 0:02:51.4]} 14... e5 {[%clk 0:02:25.4]} 15.
Bg5 {[%clk 0:02:50.4]} 15... Be6 {[%clk 0:02:12.3]} 16. Ne4 {[%clk 0:02:47.8]}
16... Qb4 {[%clk 0:01:36.8]} 17. Bxf6 {[%clk 0:01:50.7]} 17... gxf6 {[%clk
0:01:37.7]} 18. c3 {[%clk 0:01:46.6]} 18... Qe7 {[%clk 0:00:38.9]} 19. Nxf6+
{[%clk 0:01:44.2]} 19... Kh8 {[%clk 0:00:23.8]} 20. Rfe1 {[%clk 0:01:41.3]}
20... Bxa2 {[%clk 0:00:15.8]} 21. Qf5 {[%clk 0:01:40]} 1-0

[Event "*** SCC Grand Prix: Titled Tuesday Blitz"]
[Site "Chess.com"]
[Date "2020.06.02"]
[Round "8"]
[White "queen_iryna"]
[Black "Efremov_Vlad"]
[Result "1-0"]
[WhiteElo "2260"]
[BlackElo "2165"]
[TimeControl "180+1"]
[EndTime "11:34:26 PDT"]
[Termination "queen_iryna won on time"]

1. d4 {[%clk 0:03:00.9]} 1... d5 {[%clk 0:03:00.1]} 2. Bf4 {[%clk 0:02:59.3]}
2... Nf6 {[%clk 0:02:59.8]} 3. e3 {[%clk 0:02:59.3]} 3... c5 {[%clk 0:03:00]} 4.
c3 {[%clk 0:02:58.8]} 4... e6 {[%clk 0:02:59.2]} 5. Nd2 {[%clk 0:02:58.5]} 5...
Nc6 {[%clk 0:02:59.5]} 6. Bd3 {[%clk 0:02:58.3]} 6... Bd6 {[%clk 0:02:51.7]} 7.
Bxd6 {[%clk 0:02:26.9]} 7... Qxd6 {[%clk 0:02:51.2]} 8. f4 {[%clk 0:02:25.8]}
8... b6 {[%clk 0:02:48.4]} 9. Ngf3 {[%clk 0:02:23]} 9... Bb7 {[%clk 0:02:47.3]}
10. O-O {[%clk 0:02:22.2]} 10... O-O {[%clk 0:02:43.8]} 11. Ne5 {[%clk
0:02:19.9]} 11... Ne7 {[%clk 0:02:28.9]} 12. Qf3 {[%clk 0:02:13]} 12... cxd4
{[%clk 0:01:49.6]} 13. exd4 {[%clk 0:02:11.4]} 13... Ng6 {[%clk 0:01:49.5]} 14.
Rae1 {[%clk 0:02:05.5]} 14... a6 {[%clk 0:01:20.6]} 15. Ng4 {[%clk 0:01:39.3]}
15... Nxg4 {[%clk 0:01:18.1]} 16. Qxg4 {[%clk 0:01:40.2]} 1-0